fUST/lending_fUST_20251007
["ID","MTS","AMOUNT","RATE_DAILY","PERIOD"]
[389778297,1759845040203,-362.00327366,0.00018189,2]
[389778298,1759845040212,-648.88699237,0.00018254,2]
[389778299,1759845040222,-151.0,0.000183,2]
[389778300,1759845040232,-151.0,0.000183,2]
[389778302,1759845040241,-362.00327366,0.00018321,2]
[389778303,1759845040250,-1000.0,0.00018356,2]
[389778304,1759845040260,-1000.0,0.00018421,2]
[389778305,1759845040269,-1000.0,0.00018421,2]
[389778306,1759845040278,-1000.0,0.00018421,2]
[389778307,1759845040288,-1000.0,0.00018421,2]
[389778308,1759845040297,-1000.0,0.00018421,2]
[389778309,1759845040307,-1000.0,0.00018421,2]
[389778311,1759845040316,-324.0,0.00018437,2]
[389778312,1759845040326,-198.0,0.00018437,2]
[389778313,1759845040338,-500.0,0.00018447,2]
[389778314,1759845040347,-151.35091737,0.00018447,2]
[389778315,1759845040357,-151.0,0.00018447,2]
[389778316,1759845040366,-151.0,0.00018447,2]
[389778317,1759845040376,-198.90172451,0.00018447,2]
[389778318,1759845040386,-151.0,0.00018447,2]
[389778319,1759845040395,-198.29765707,0.00018447,2]
[389778320,1759845040405,-296.88603996,0.00018496,2]
[389778321,1759845040415,-151.0,0.000185,2]
[389778322,1759845040424,-151.0,0.000185,2]
[389778323,1759845040434,-1000.0,0.0001863,2]
[389778324,1759845040444,-151.0,0.000187,2]
[389778325,1759845040453,-151.0,0.000187,2]
[389778326,1759845040463,-151.0,0.000187,2]
[389778327,1759845040473,-500.0,0.00018721,2]
[389778328,1759845040483,-198.0,0.00018721,2]
[389778329,1759845040492,-151.0,0.00018721,2]
[389778330,1759845040501,-151.0,0.00018721,2]
[389778331,1759845040511,-345.0,0.00018892,2]
[389778332,1759845040520,-151.0,0.000189,2]
[389778333,1759845040530,-151.0,0.000189,2]
[389778334,1759845040540,-151.0,0.000189,2]
[389778335,1759845040551,-1000.0,0.00018904,2]
[389778336,1759845040561,-1500.0,0.00018968,2]
[389778337,1759845040570,-1500.0,0.00018968,2]
[389778338,1759845040585,-1500.0,0.00018968,2]
[389778339,1759845040595,-1500.0,0.00018968,2]
[389778340,1759845040604,-1500.0,0.00018968,2]
[389778341,1759845040613,-1500.0,0.00018968,2]
[389778342,1759845040827,-159.88976109,0.00018995,2]
[389778343,1759845040846,-276.59985086,0.00018995,2]
[389778344,1759845040856,-246.9147262,0.00018995,2]
[389778345,1759845040867,-160.0,0.00019028,2]
[389778346,1759845040877,-402.02512307,0.00019028,2]
[389778347,1759845040887,-234.20938206,0.00019028,2]
[389778348,1759845040896,-533.72506543,0.00019028,2]
[389778349,1759845040906,-1108.87768273,0.00019161,2]
[389778350,1759845040915,-1000.0,0.00019178,2]
[389778351,1759845040925,-151.0,0.000192,2]
[389778352,1759845040934,-151.0,0.000192,2]
[389778353,1759845040944,-151.0,0.000192,2]
[389778354,1759845040953,-1411.68,0.0001926,3]
[389778355,1759845040962,-705.84,0.0001926,3]
[389778356,1759845040972,-352.92,0.0001926,3]
[389778357,1759845040981,-1108.87768273,0.0001927,2]
[389778358,1759845040990,-323.87567996,0.00019296,2]
[389778359,1759845040999,-378.52332229,0.00019315,2]
[389778360,1759845041008,-160.0,0.00019357,2]
[389778361,1759845041018,-980.0,0.00019362,2]
[389778362,1759845041027,-2158.0,0.00019362,2]
[389778363,1759845041036,-630.0,0.00019362,2]
[389778364,1759845041046,-815.30675222,0.00019363,2]
[389778365,1759845041055,-5764.77899207,0.00019384,2]
[389778366,1759845041065,-151.0,0.000194,2]
[389778367,1759845041074,-151.0,0.000194,2]
[389778368,1759845041086,-151.0,0.000194,2]
[389778369,1759845041095,-1680.0,0.00019423,2]
[389778370,1759845041106,-420.0,0.00019423,2]
[389778371,1759845041115,-420.0,0.00019423,2]
[389778372,1759845041125,-420.0,0.00019423,2]
[389778373,1759845041134,-420.0,0.00019423,2]
[389778374,1759845041143,-420.0,0.00019423,2]
[389778375,1759845041153,-1000.0,0.00019452,2]
[389778376,1759845041162,-168.01695144,0.00019481,2]
[389778377,1759845041171,-301.60032361,0.000195,2]
[389778378,1759845041180,-2000.0,0.00019516,2]
[389778379,1759845041189,-624.02490268,0.00019516,2]
[389778380,1759845041198,-2000.0,0.00019516,2]
[389778381,1759845041207,-2000.0,0.00019516,2]
[389778382,1759845041216,-2000.0,0.00019516,2]
[389778383,1759845041225,-2000.0,0.00019516,2]
[389778384,1759845041235,-1680.0,0.00019517,2]
[389778385,1759845041244,-151.0,0.000196,2]
[389778386,1759845041253,-151.0,0.000196,2]
[389778387,1759845041263,-151.0,0.000196,2]
[389778388,1759845041273,-1108.87768273,0.00019684,2]
[389778389,1759845041282,-1000.0,0.00019726,2]
[389778390,1759845041291,-2200.737,0.00019751,2]
[389778391,1759845041301,-151.0,0.000198,2]
[389778392,1759845041311,-151.0,0.000198,2]
[389778393,1759845041321,-151.0,0.000198,2]
[389778394,1759845041334,-71856.4356064,0.000199,2]
[389778395,1759845041344,-177.14614789,0.000199,2]
[389778396,1759845041354,-1108.87768276,0.00019901,2]
[389778397,1759845041364,-260.0,0.00019905,2]
[389778398,1759845041373,-572.09867,0.0001992,7]
[389778399,1759845041383,-151.0,0.0001992,7]
[389778400,1759845041392,-572.09867,0.0001992,7]
[389778401,1759845041402,-572.09867,0.0001992,7]
[389778402,1759845041411,-572.09867,0.0001992,7]
[389778403,1759845041420,-151.0,0.0001992,7]
[389778404,1759845041429,-857.0,0.0001992,2]
[389778405,1759845041439,-500.0,0.00019973,2]
[389778406,1759845041449,-500.0,0.00019973,2]
[389778407,1759845041458,-500.0,0.00019973,2]
[389778408,1759845041467,-500.0,0.00019973,2]
[389778409,1759845041477,-500.0,0.00019973,2]
[389778410,1759845041486,-500.0,0.00019973,2]
[389778411,1759845041495,-500.0,0.00019973,2]
[389778412,1759845041504,-291.31504269,0.00019973,2]
[389778413,1759845041514,-500.0,0.00019973,2]
[389778414,1759845041524,-500.0,0.00019973,2]
[389778415,1759845041533,-500.0,0.00019973,2]
[389778416,1759845041542,-500.0,0.00019973,2]
[389778417,1759845041552,-500.0,0.00019973,2]
[389778418,1759845041561,-500.0,0.00019973,2]
[389778419,1759845041571,-203.67230258,0.00019973,2]
[389778420,1759845041586,-500.0,0.00019973,2]
[389778421,1759845041596,-170.92839409,0.00019973,2]
[389778422,1759845041605,-500.0,0.00019973,2]
[389778423,1759845041614,-500.0,0.00019973,2]
[389778424,1759845041623,-500.0,0.00019973,2]
[389778425,1759845041633,-200.61392995,0.00019973,2]
[389778426,1759845041642,-500.0,0.00019973,2]
[389778427,1759845041652,-200.19353786,0.00019973,2]
[389778428,1759845041660,-500.0,0.00019973,2]
[389778429,1759845041669,-200.18899374,0.00019973,2]
[389778430,1759845041679,-500.0,0.00019973,2]
[389778431,1759845041688,-500.0,0.00019973,2]
[389778432,1759845041697,-500.0,0.00019973,2]
[389778433,1759845041707,-500.0,0.00019973,2]
[389778434,1759845041716,-500.0,0.00019973,2]
[389778435,1759845041725,-358.07527654,0.00019973,2]
[389778436,1759845041735,-579.87466385,0.00019973,2]
[389778437,1759845041744,-1432.30110616,0.00019973,2]
[389778438,1759845041754,-3222.67748886,0.00019973,2]
[389778439,1759845041763,-5723.47522022,0.00019973,2]
[389778440,1759845041772,-200.0,0.00019999,2]
[389778441,1759845041782,-2940.1324729,0.00019999,2]
[389778442,1759845041792,-576060.3429808,0.0002,2]
[389778443,1759845041801,-402.02512307,0.0002,7]
[389778444,1759845041810,-533.72506543,0.0002,7]
[389778445,1759845041819,-174.685,0.0002,2]
[389778446,1759845041831,-2000.0,0.0002,2]
[389778447,1759845041840,-2000.0,0.0002,2]
[389778448,1759845041850,-174.684,0.0002,2]
[389778449,1759845041860,-500.0,0.0002,2]
[389778450,1759845041869,-151.0,0.0002,7]
[389778451,1759845041879,-151.0,0.0002,7]
[389778452,1759845041888,-400.986,0.0002,2]
[389778453,1759845041897,-400.986,0.0002,2]
[389778454,1759845041907,-300.096182,0.0002,7]
[389778455,1759845041917,-400.986,0.0002,2]
[389778456,1759845041927,-400.986,0.0002,2]
[389778457,1759845041936,-151.0,0.0002,7]
[389778458,1759845041946,-151.0,0.0002,7]
[389778459,1759845041956,-572.09867,0.0002,7]
[389778460,1759845041965,-151.449236,0.0002,7]
[389778461,1759845041974,-572.09867,0.0002,7]
[389778462,1759845041984,-572.09867,0.0002,7]
[389778463,1759845041993,-572.09867,0.0002,7]
[389778464,1759845042003,-151.0,0.0002,7]
[389778465,1759845042012,-2000.0,0.0002,2]
[389778466,1759845042021,-303.04464238,0.0002,2]
[389778467,1759845042031,-151.0,0.0002,7]
[389778468,1759845042041,-151.0,0.0002,7]
[389778469,1759845042050,-1000.0,0.0002,2]
[389778470,1759845042060,-151.0,0.0002,7]
[389778471,1759845042069,-183.738867,0.0002,7]
[389778472,1759845042080,-246.368308,0.0002,7]
[389778473,1759845042090,-246.368308,0.0002,7]
[389778474,1759845042100,-246.368308,0.0002,7]
[389778475,1759845042109,-246.368308,0.0002,7]
[389778476,1759845042118,-151.0,0.0002,7]
[389778477,1759845042129,-151.0,0.0002,7]
[389778478,1759845042138,-150000.0,0.0002,2]
[389778479,1759845042147,-151.0,0.0002,7]
[389778480,1759845042156,-151.0,0.0002,7]
[389778481,1759845042166,-38224.5094017,0.0002,2]
[389778482,1759845042176,-180.02880461,0.0002,2]
[389778483,1759845042185,-151.0,0.0002,7]
[389778484,1759845042195,-500.0,0.0002,2]
[389778485,1759845042205,-151.0,0.0002,7]
[389778486,1759845042216,-151.0,0.0002,7]
[389778487,1759845042225,-151.0,0.0002,7]
[389778488,1759845042235,-151.0,0.0002,7]
[389778489,1759845042244,-226.855339,0.0002,7]
[389778490,1759845042253,-226.855339,0.0002,7]
[389778491,1759845042262,-226.855339,0.0002,7]
[389778492,1759845042271,-226.855339,0.0002,7]
[389778493,1759845042280,-240.0,0.0002,7]
[389778494,1759845042290,-240.0,0.0002,7]
[389778495,1759845042299,-240.0,0.0002,7]
[389778496,1759845042309,-240.0,0.0002,7]
[389778497,1759845042318,-151.0,0.0002,7]
[389778498,1759845042329,-151.0,0.0002,7]
[389778499,1759845042339,-151.0,0.0002,7]
[389778500,1759845042348,-151.0,0.0002,7]
[389778501,1759845042358,-151.0,0.0002,7]
[389778502,1759845042367,-151.0,0.0002,7]
[389778503,1759845042376,-151.0,0.0002,7]
[389778504,1759845042386,-151.0,0.0002,7]
[389778505,1759845042396,-151.0,0.0002,7]
[389778506,1759845042405,-196.098455,0.0002,7]
[389778507,1759845042415,-160.658113,0.0002,7]
[389778508,1759845042424,-152.159037,0.0002,7]
[389778509,1759845042433,-151.0,0.0002,7]
[389778510,1759845042442,-151.0,0.0002,7]
[389778511,1759845042452,-1000.0,0.0002,2]
[389778512,1759845042461,-1000.0,0.0002,2]
[389778513,1759845042470,-1000.0,0.0002,2]
[389778514,1759845042479,-1000.0,0.0002,2]
[389778515,1759845042489,-1000.0,0.0002,2]
[389778516,1759845042499,-1000.0,0.0002,2]
[389778517,1759845042508,-1000.0,0.0002,2]
[389778518,1759845042518,-1000.0,0.0002,2]
[389778519,1759845042527,-1000.0,0.0002,2]
[389778520,1759845042537,-1000.0,0.0002,2]
[389778521,1759845042546,-1000.0,0.0002,2]
[389778522,1759845042556,-1000.0,0.0002,2]
[389778523,1759845042566,-1000.0,0.0002,2]
[389778524,1759845042580,-1000.0,0.0002,2]
[389778525,1759845042594,-1000.0,0.0002,2]
[389778526,1759845042603,-952.81151107,0.0002,2]
[389778527,1759845042612,-151.0,0.0002,7]
[389778528,1759845042623,-151.0,0.0002,7]
[389778529,1759845042632,-151.821237,0.0002,7]
[389778530,1759845042641,-1024.730886,0.0002,7]
[389778531,1759845042651,-1024.730886,0.0002,7]
[389778532,1759845042661,-1024.730886,0.0002,7]
[389778533,1759845042670,-1024.730886,0.0002,7]
[389778534,1759845042679,-1024.730886,0.0002,7]
[389778535,1759845042689,-1024.730886,0.0002,7]
[389778536,1759845042698,-1024.730886,0.0002,7]
[389778537,1759845042707,-1024.730886,0.0002,7]
[389778538,1759845042717,-151.0,0.0002,7]
[389778540,1759845042726,-152.550784,0.0002,7]
[389778542,1759845042736,-1274.190011,0.0002,7]
[389778543,1759845042745,-1274.190011,0.0002,7]
[389778544,1759845042755,-1274.190011,0.0002,7]
[389778545,1759845042765,-1274.190011,0.0002,7]
[389778547,1759845042774,-360.061877,0.0002,7]
[389778548,1759845042783,-360.061877,0.0002,7]
[389778549,1759845042792,-1274.190011,0.0002,7]
[389778550,1759845042802,-1274.190011,0.0002,7]
[389778551,1759845042812,-360.061877,0.0002,7]
[389778552,1759845042821,-360.061877,0.0002,7]
[389778553,1759845042834,-1274.190011,0.0002,7]
[389778554,1759845042844,-1274.190011,0.0002,7]
[389778555,1759845042853,-360.061877,0.0002,7]
[389778556,1759845042863,-360.061877,0.0002,7]
[389778557,1759845042873,-360.061877,0.0002,7]
[389778558,1759845042882,-360.061877,0.0002,7]
[389778559,1759845042892,-151.0,0.0002,7]
[389778560,1759845042901,-151.0,0.0002,7]
[389778561,1759845042911,-151.0,0.0002,7]
[389778562,1759845042920,-151.0,0.0002,7]
[389778563,1759845042930,-233.417555,0.0002,7]
[389778564,1759845042940,-151.0,0.0002,7]
[389778565,1759845042950,-151.0,0.0002,7]
[389778566,1759845042960,-151.0,0.0002,7]
[389778567,1759845042970,-151.0,0.0002,7]
[389778568,1759845042980,-151.0,0.0002,7]
[389778569,1759845042989,-151.0,0.0002,7]
[389778570,1759845042999,-151.0,0.0002,7]
[389778572,1759845043008,-151.0,0.0002,7]
[389778574,1759845043018,-151.0,0.0002,7]
[389778576,1759845043028,-151.0,0.0002,7]
[389778578,1759845043038,-151.0,0.0002,7]
[389778580,1759845043047,-151.0,0.0002,7]
[389778582,1759845043057,-151.0,0.0002,7]
[389778585,1759845043068,-151.0,0.0002,7]
[389778588,1759845043078,-151.0,0.0002,7]
[389778590,1759845043093,-151.0,0.0002,7]
[389778592,1759845043102,-151.0,0.0002,7]
[389778594,1759845043113,-151.0,0.0002,7]
[389778597,1759845043122,-151.0,0.0002,7]
[389778599,1759845043132,-151.0,0.0002,7]
[389778601,1759845043141,-151.0,0.0002,7]
[389778603,1759845043151,-151.0,0.0002,7]
[389778605,1759845043161,-151.0,0.0002,7]
[389778606,1759845043171,-151.0,0.0002,7]
[389778607,1759845043181,-151.0,0.0002,7]
[389778608,1759845043190,-153.134092,0.0002,7]
[389778609,1759845043200,-151.0,0.0002,7]
[389778610,1759845043210,-155.186527,0.0002,7]
[389778611,1759845043220,-151.0,0.0002,7]
[389778612,1759845043229,-151.0,0.0002,7]
[389778613,1759845043238,-158.576464,0.0002,7]
[389778614,1759845043248,-151.0,0.0002,7]
[389778615,1759845043257,-151.0,0.0002,7]
[389778616,1759845043267,-151.0,0.0002,7]
[389778617,1759845043276,-151.0,0.0002,7]
[389778618,1759845043286,-712.235839,0.0002,7]
[389778619,1759845043296,-712.235839,0.0002,7]
[389778620,1759845043306,-151.0,0.0002,7]
[389778621,1759845043315,-712.235839,0.0002,7]
[389778622,1759845043325,-273.831473,0.0002,7]
[389778623,1759845043338,-712.235839,0.0002,7]
[389778624,1759845043348,-712.235839,0.0002,7]
[389778625,1759845043359,-712.235839,0.0002,7]
[389778626,1759845043375,-712.235839,0.0002,7]
[389778627,1759845043384,-712.235839,0.0002,7]
[389778628,1759845043394,-712.235839,0.0002,7]
[389778629,1759845043404,-712.235839,0.0002,7]
[389778630,1759845043414,-712.235839,0.0002,7]
[389778631,1759845043423,-712.235839,0.0002,7]
[389778632,1759845043432,-151.0,0.0002,7]
[389778633,1759845043442,-151.0,0.0002,7]
[389778634,1759845043451,-151.0,0.0002,7]
[389778635,1759845043460,-217.77541,0.0002,7]
[389778636,1759845043469,-217.77541,0.0002,7]
[389778637,1759845043479,-217.77541,0.0002,7]
[389778638,1759845043488,-217.77541,0.0002,7]
[389778639,1759845043498,-217.77541,0.0002,7]
[389778640,1759845043507,-217.77541,0.0002,7]
[389778641,1759845043517,-217.77541,0.0002,7]
[389778642,1759845043526,-217.77541,0.0002,7]
[389778643,1759845043536,-217.77541,0.0002,7]
[389778644,1759845043546,-217.77541,0.0002,7]
[389778645,1759845043556,-217.77541,0.0002,7]
[389778646,1759845043567,-217.77541,0.0002,7]
[389778647,1759845043586,-151.0,0.0002,7]
[389778648,1759845043596,-151.0,0.0002,7]
[389778649,1759845043606,-152.224132,0.0002,7]
[389778650,1759845043617,-153.068941,0.0002,7]
[389778651,1759845043627,-151.0,0.0002,7]
[389778652,1759845043638,-151.0,0.0002,7]
[389778653,1759845043648,-151.0,0.0002,7]
[389778654,1759845043658,-151.0,0.0002,7]
[389778655,1759845043668,-152.298219,0.0002,7]
[389778656,1759845043678,-151.0,0.0002,7]
[389778657,1759845043688,-151.0,0.0002,7]
[389778658,1759845043697,-151.0,0.0002,7]
[389778659,1759845043707,-151.0,0.0002,7]
[389778660,1759845043716,-151.0,0.0002,7]
[389778661,1759845043725,-151.0,0.0002,7]
[389778662,1759845043735,-151.0,0.0002,7]
[389778663,1759845043746,-151.0,0.0002,7]
[389778664,1759845043755,-182.110453,0.0002,7]
[389778666,1759845043764,-151.0,0.0002,7]
[389778668,1759845043774,-151.0,0.0002,7]
[389778670,1759845043783,-151.0,0.0002,7]
[389778672,1759845043792,-246.787544,0.0002,7]
[389778674,1759845043801,-151.0,0.0002,7]
[389778676,1759845043810,-151.0,0.0002,7]
[389778678,1759845043820,-151.0,0.0002,7]
[389778680,1759845043830,-151.0,0.0002,7]
[389778682,1759845043842,-151.0,0.0002,7]
[389778684,1759845043852,-151.0,0.0002,7]
[389778686,1759845043864,-151.0,0.0002,7]
[389778688,1759845043874,-151.0,0.0002,7]
[389778690,1759845043883,-151.0,0.0002,7]
[389778692,1759845043892,-308.814312,0.0002,7]
[389778694,1759845043901,-308.814312,0.0002,7]
[389778696,1759845043911,-308.814312,0.0002,7]
[389778698,1759845043921,-308.814312,0.0002,7]
[389778699,1759845043929,-308.814312,0.0002,7]
[389778701,1759845043938,-308.814312,0.0002,7]
[389778702,1759845043947,-308.814312,0.0002,7]
[389778704,1759845043956,-308.814312,0.0002,7]
[389778706,1759845043966,-308.814312,0.0002,7]
[389778708,1759845043975,-308.814312,0.0002,7]
[389778710,1759845043984,-308.814312,0.0002,7]
[389778712,1759845043994,-308.814312,0.0002,7]
[389778714,1759845044003,-256.781425,0.0002,7]
[389778716,1759845044012,-256.781425,0.0002,7]
[389778718,1759845044022,-256.781425,0.0002,7]
[389778720,1759845044031,-153.74492,0.0002,7]
[389778722,1759845044040,-1934.841987,0.0002,7]
[389778724,1759845044050,-256.781425,0.0002,7]
[389778726,1759845044059,-1934.841987,0.0002,7]
[389778728,1759845044068,-256.781425,0.0002,7]
[389778730,1759845044078,-1934.841987,0.0002,7]
[389778732,1759845044090,-256.781425,0.0002,7]
[389778734,1759845044099,-256.781425,0.0002,7]
[389778736,1759845044108,-1934.841987,0.0002,7]
[389778737,1759845044117,-256.781425,0.0002,7]
[389778739,1759845044128,-1934.841987,0.0002,7]
[389778741,1759845044137,-256.781425,0.0002,7]
[389778743,1759845044147,-1934.841987,0.0002,7]
[389778745,1759845044156,-1934.841987,0.0002,7]
[389778747,1759845044165,-256.781425,0.0002,7]
[389778749,1759845044175,-256.781425,0.0002,7]
[389778751,1759845044185,-1934.841987,0.0002,7]
[389778753,1759845044194,-1934.841987,0.0002,7]
[389778755,1759845044204,-256.781425,0.0002,7]
[389778757,1759845044213,-1934.841987,0.0002,7]
[389778759,1759845044223,-1934.841987,0.0002,7]
[389778761,1759845044232,-164.66387778,0.0002,2]
[389778763,1759845044241,-1934.841987,0.0002,7]
[389778765,1759845044251,-1000.0,0.0002,4]
[389778767,1759845044260,-151.0,0.0002,7]
[389778769,1759845044270,-151.0,0.0002,7]
[389778771,1759845044280,-151.0,0.0002,7]
[389778773,1759845044290,-151.0,0.0002,7]
[389778775,1759845044299,-151.0,0.0002,7]
[389778777,1759845044309,-151.0,0.0002,7]
[389778779,1759845044319,-151.0,0.0002,7]
[389778781,1759845044328,-151.0,0.0002,7]
[389778783,1759845044343,-151.0,0.0002,7]
[389778785,1759845044352,-151.0,0.0002,7]
[389778787,1759845044361,-151.0,0.0002,7]
[389778789,1759845044372,-151.0,0.0002,7]
[389778791,1759845044381,-151.0,0.0002,7]
[389778793,1759845044391,-151.0,0.0002,7]
[389778795,1759845044401,-295.214375,0.0002,7]
[389778797,1759845044410,-151.0,0.0002,7]
[389778800,1759845044424,-213.989612,0.0002,7]
[389778801,1759845044433,-151.0,0.0002,7]
[389778803,1759845044443,-151.0,0.0002,7]
[389778806,1759845044452,-151.0,0.0002,7]
[389778807,1759845044461,-857.0,0.00020045,2]
[389778809,1759845044471,-1946.66097712,0.00020054,2]
[389778811,1759845044481,-2500.0,0.00020064,2]
[389778813,1759845044489,-2500.0,0.00020064,2]
[389778815,1759845044499,-2500.0,0.00020064,2]
[389778817,1759845044508,-2500.0,0.00020064,2]
[389778819,1759845044518,-2500.0,0.00020064,2]
[389778821,1759845044527,-168.0,0.00020079,2]
[389778823,1759845044536,-350.86531995,0.00020096,2]
[389778824,1759845044545,-857.0,0.00020116,2]
[389778826,1759845044554,-168.0,0.00020161,2]
[389778828,1759845044564,-630.863017,0.00020187,2]
[389778830,1759845044573,-168.0,0.0002025,2]
[389778832,1759845044589,-983.78222454,0.00020273,2]
[389778834,1759845044599,-300.0,0.00020287,2]
[389778836,1759845044608,-300.0,0.00020287,2]
[389778838,1759845044617,-300.0,0.00020287,2]
[389778840,1759845044629,-300.0,0.00020287,2]
[389778842,1759845044638,-300.0,0.00020287,2]
[389778844,1759845044648,-300.0,0.00020287,2]
[389778846,1759845044658,-300.0,0.00020287,2]
[389778848,1759845044669,-300.0,0.00020287,2]
[389778850,1759845044678,-300.0,0.00020287,2]
[389778852,1759845044688,-300.0,0.00020287,2]
[389778854,1759845044697,-300.0,0.00020287,2]
[389778856,1759845044706,-300.0,0.00020287,2]
[389778858,1759845044715,-300.0,0.00020287,2]
[389778860,1759845044725,-300.0,0.00020287,2]
[389778862,1759845044734,-300.0,0.00020287,2]
[389778864,1759845044743,-600.0,0.00020287,2]
[389778866,1759845044752,-2317.17915675,0.0002031,2]
[389778867,1759845044763,-168.0,0.00020331,2]
[389778868,1759845044772,-173.09530926,0.00020355,7]
[389778869,1759845044782,-12597.79876203,0.00020415,2]
[389778870,1759845044792,-168.0,0.00020432,2]
[389778871,1759845044802,-360.0,0.00020453,2]
[389778872,1759845044812,-200.0,0.0002051,2]
[389778873,1759845044822,-857.0,0.00020515,2]
[389778874,1759845044836,-1274.190011,0.00020515,7]
[389778875,1759845044846,-1274.190011,0.00020515,7]
[389778876,1759845044855,-1274.190011,0.00020515,7]
[389778877,1759845045068,-1274.190011,0.00020515,7]
[389778878,1759845045078,-151.0,0.00020515,7]
[389778879,1759845045091,-151.0,0.00020515,7]
[389778880,1759845045101,-151.0,0.00020515,7]
[389778881,1759845045111,-151.0,0.00020515,7]
[389778882,1759845045120,-151.0,0.00020515,7]
[389778883,1759845045130,-151.0,0.00020515,7]
[389778884,1759845045139,-151.0,0.00020515,7]
[389778885,1759845045149,-151.0,0.00020515,7]
[389778886,1759845045159,-151.0,0.00020515,7]
[389778887,1759845045168,-151.0,0.00020515,7]
[389778888,1759845045178,-200.45389814,0.00020521,2]
[389778889,1759845045187,-1000.0,0.00020521,2]
[389778890,1759845045197,-1000.0,0.00020521,2]
[389778891,1759845045207,-1000.0,0.00020521,2]
[389778892,1759845045216,-1000.0,0.00020521,2]
[389778893,1759845045226,-193.22369181,0.00020521,2]
[389778894,1759845045237,-1000.0,0.00020521,2]
[389778895,1759845045247,-1000.0,0.00020521,2]
[389778896,1759845045257,-502.82794686,0.00020521,2]
[389778897,1759845045267,-1000.0,0.00020521,2]
[389778898,1759845045277,-503.39273137,0.00020521,2]
[389778899,1759845045286,-1000.0,0.00020521,2]
[389778900,1759845045296,-213.64385673,0.00020521,2]
[389778901,1759845045305,-1000.0,0.00020521,2]
[389778902,1759845045315,-511.89809001,0.00020521,2]
[389778903,1759845045324,-1000.0,0.00020521,2]
[389778904,1759845045335,-1000.0,0.00020521,2]
[389778905,1759845045345,-1000.0,0.00020521,2]
[389778906,1759845045356,-1000.0,0.00020521,2]
[389778907,1759845045365,-1000.0,0.00020521,2]
[389778908,1759845045375,-1000.0,0.00020521,2]
[389778909,1759845045384,-1000.0,0.00020521,2]
[389778910,1759845045394,-482.82349399,0.00020521,2]
[389778911,1759845045403,-1000.0,0.00020521,2]
[389778912,1759845045414,-151.0,0.00020521,7]
[389778913,1759845045427,-151.0,0.00020521,7]
[389778914,1759845045437,-151.0,0.00020521,7]
[389778915,1759845045447,-151.0,0.00020521,7]
[389778916,1759845045457,-151.0,0.00020521,7]
[389778917,1759845045468,-151.0,0.00020521,7]
[389778918,1759845045478,-151.0,0.00020521,7]
[389778919,1759845045488,-226.855339,0.00020521,7]